fUST/lending_fUST_20240201
["ID","MTS","AMOUNT","RATE_DAILY","PERIOD"]
[313077318,1706724640807,-500.0,0.00019452,2]
[313077319,1706724640816,-500.0,0.00019452,2]
[313077320,1706724640826,-500.0,0.00019452,2]
[313077321,1706724640836,-569.2,0.00019452,2]
[313077322,1706724640845,-2044.9,0.00019452,2]
[313077323,1706724640855,-500.0,0.00019452,2]
[313077324,1706724640865,-1069.24,0.00019452,2]
[313077325,1706724640874,-1339.73,0.00019452,2]
[313077326,1706724640884,-500.0,0.00019452,2]
[313077327,1706724640894,-2777.5,0.00019452,2]
[313077328,1706724640903,-500.0,0.00019452,2]
[313077329,1706724640912,-2197.69,0.00019452,2]
[313077330,1706724640921,-1166.69,0.00019452,2]
[313077331,1706724640931,-732.7,0.00019452,2]
[313077332,1706724640940,-500.0,0.00019452,2]
[313077333,1706724640949,-500.0,0.00019726,2]
[313077334,1706724640959,-500.0,0.00019726,2]
[313077335,1706724640968,-331.03874954,0.00019726,2]
[313077336,1706724640977,-500.0,0.00019726,2]
[313077337,1706724640986,-532.99,0.00019726,2]
[313077338,1706724640995,-541.17,0.00019726,2]
[313077339,1706724641005,-915.39,0.00019726,2]
[313077340,1706724641015,-500.0,0.00019726,2]
[313077341,1706724641023,-500.0,0.00019726,2]
[313077342,1706724641033,-500.0,0.00019726,2]
[313077343,1706724641042,-500.0,0.00019726,2]
[313077344,1706724641053,-500.0,0.00019726,2]
[313077345,1706724641063,-500.0,0.00019726,2]
[313077346,1706724641072,-500.0,0.00019726,2]
[313077347,1706724641081,-500.0,0.00019726,2]
[313077348,1706724641090,-500.0,0.00019726,2]
[313077349,1706724641100,-500.0,0.00019726,2]
[313077350,1706724641109,-500.0,0.00019726,2]
[313077351,1706724641118,-500.0,0.00019726,2]
[313077352,1706724641127,-500.0,0.00019726,2]
[313077353,1706724641138,-500.0,0.00019726,2]
[313077354,1706724641148,-1076.2,0.00019726,2]
[313077355,1706724641157,-1068.72,0.00019726,2]
[313077356,1706724641168,-1113.61,0.00019726,2]
[313077357,1706724641177,-909.23,0.00019726,2]
[313077358,1706724641186,-1835.52,0.00019726,2]
[313077359,1706724641195,-2491.9,0.00019726,2]
[313077360,1706724641204,-895.51,0.00019726,2]
[313077361,1706724641214,-500.0,0.00019726,2]
[313077362,1706724641224,-423.32,0.00019726,2]
[313077363,1706724641233,-511.52,0.00019726,2]
[313077364,1706724641243,-1664.55,0.00019726,2]
[313077365,1706724641252,-500.0,0.00019726,2]
[313077366,1706724641263,-500.0,0.00019726,2]
[313077367,1706724641272,-867.31,0.00019726,2]
[313077368,1706724641281,-1644.26,0.00019726,2]
[313077369,1706724641290,-500.0,0.00019726,2]
[313077370,1706724641302,-603.06,0.00019726,2]
[313077371,1706724641311,-500.0,0.00019726,2]
[313077372,1706724641320,-500.0,0.00019726,2]
[313077373,1706724641329,-500.0,0.00019726,2]
[313077374,1706724641338,-1253.81,0.00019726,2]
[313077375,1706724641348,-500.0,0.00019726,2]
[313077376,1706724641357,-500.0,0.00019726,2]
[313077377,1706724641367,-3237.86,0.00019726,2]
[313077379,1706724641376,-500.0,0.00019726,2]
[313077380,1706724641386,-500.0,0.00019726,2]
[313077381,1706724641395,-500.0,0.00019726,2]
[313077382,1706724641404,-1593.16,0.00019726,2]
[313077383,1706724641414,-862.47,0.00019726,2]
[313077384,1706724641423,-5897.29,0.00019726,2]
[313077385,1706724641433,-601.31,0.00019726,2]
[313077386,1706724641442,-6524.56,0.00019726,2]
[313077387,1706724641451,-662.81,0.00019726,2]
[313077388,1706724641461,-8750.27,0.00019726,2]
[313077389,1706724641470,-1012.19,0.00019726,2]
[313077390,1706724641479,-12456.94,0.00019726,2]
[313077391,1706724641489,-500.0,0.00019726,2]
[313077392,1706724641498,-500.0,0.00019726,2]
[313077394,1706724641507,-500.0,0.00019726,2]
[313077396,1706724641515,-569.2,0.00019726,2]
[313077397,1706724641524,-2044.9,0.00019726,2]
[313077400,1706724641534,-1069.24,0.00019726,2]
[313077401,1706724641543,-1339.73,0.00019726,2]
[313077403,1706724641552,-500.0,0.00019726,2]
[313077406,1706724641564,-2777.5,0.00019726,2]
[313077407,1706724641573,-500.0,0.00019726,2]
[313077409,1706724641582,-2305.06,0.00019726,2]
[313077411,1706724641592,-2197.69,0.00019726,2]
[313077413,1706724641602,-732.7,0.00019726,2]
[313077415,1706724641611,-1166.69,0.00019726,2]
[313077417,1706724641620,-500.0,0.00019726,2]
[313077419,1706724641629,-44380.68568654,0.0002,2]
[313077421,1706724641639,-155.0,0.0002,2]
[313077423,1706724641648,-178.21239998,0.0002,2]
[313077425,1706724641658,-1200.08348294,0.0002,2]
[313077427,1706724641667,-500.0,0.0002,2]
[313077429,1706724641676,-155.01860223,0.0002,2]
[313077431,1706724641686,-200.0,0.0002,2]
[313077433,1706724641695,-323.57048434,0.0002,2]
[313077435,1706724641703,-155.0,0.0002,2]
[313077437,1706724641712,-500.0,0.0002,2]
[313077439,1706724641721,-300.0,0.0002,2]
[313077441,1706724641730,-2087.09739776,0.0002,2]
[313077443,1706724641739,-500.0,0.0002,2]
[313077445,1706724641749,-532.99,0.0002,2]
[313077447,1706724641758,-541.17,0.0002,2]
[313077449,1706724641767,-915.39,0.0002,2]
[313077451,1706724641776,-500.0,0.0002,2]
[313077453,1706724641786,-500.0,0.0002,2]
[313077455,1706724641794,-500.0,0.0002,2]
[313077457,1706724641803,-500.0,0.0002,2]
[313077459,1706724641812,-500.0,0.0002,2]
[313077460,1706724641821,-500.0,0.0002,2]
[313077462,1706724641830,-500.0,0.0002,2]
[313077464,1706724641840,-500.0,0.0002,2]
[313077466,1706724641849,-500.0,0.0002,2]
[313077468,1706724641859,-534.97764921,0.0002,2]
[313077470,1706724641868,-500.0,0.0002,2]
[313077472,1706724641877,-500.0,0.0002,2]
[313077474,1706724641888,-500.0,0.0002,2]
[313077476,1706724641897,-500.0,0.0002,2]
[313077478,1706724641906,-681.50502817,0.0002,2]
[313077480,1706724641916,-1076.2,0.0002,2]
[313077482,1706724641926,-1068.72,0.0002,2]
[313077484,1706724641935,-1113.61,0.0002,2]
[313077486,1706724641945,-909.23,0.0002,2]
[313077488,1706724641954,-1835.52,0.0002,2]
[313077490,1706724641963,-2491.9,0.0002,2]
[313077492,1706724641972,-895.51,0.0002,2]
[313077494,1706724641981,-500.0,0.0002,2]
[313077496,1706724641989,-511.52,0.0002,2]
[313077498,1706724641999,-1664.55,0.0002,2]
[313077500,1706724642008,-500.0,0.0002,2]
[313077501,1706724642017,-500.0,0.0002,2]
[313077504,1706724642027,-867.31,0.0002,2]
[313077506,1706724642036,-1644.26,0.0002,2]
[313077507,1706724642045,-500.0,0.0002,2]
[313077510,1706724642054,-603.06,0.0002,2]
[313077512,1706724642063,-500.0,0.0002,2]
[313077514,1706724642073,-500.0,0.0002,2]
[313077515,1706724642082,-500.0,0.0002,2]
[313077517,1706724642091,-1253.81,0.0002,2]
[313077519,1706724642101,-500.0,0.0002,2]
[313077522,1706724642110,-500.0,0.0002,2]
[313077523,1706724642119,-3237.86,0.0002,2]
[313077525,1706724642128,-500.0,0.0002,2]
[313077528,1706724642139,-500.0,0.0002,2]
[313077529,1706724642148,-500.0,0.0002,2]
[313077531,1706724642157,-1593.16,0.0002,2]
[313077533,1706724642166,-862.47,0.0002,2]
[313077535,1706724642175,-5897.29,0.0002,2]
[313077537,1706724642184,-601.31,0.0002,2]
[313077539,1706724642193,-6524.56,0.0002,2]
[313077541,1706724642203,-662.81,0.0002,2]
[313077543,1706724642212,-8750.27,0.0002,2]
[313077545,1706724642221,-1012.19,0.0002,2]
[313077547,1706724642230,-12456.94,0.0002,2]
[313077549,1706724642239,-500.0,0.0002,2]
[313077551,1706724642249,-500.0,0.0002,2]
[313077553,1706724642258,-500.0,0.0002,2]
[313077555,1706724642267,-569.2,0.0002,2]
[313077557,1706724642276,-2044.9,0.0002,2]
[313077559,1706724642285,-1069.24,0.0002,2]
[313077561,1706724642294,-1339.73,0.0002,2]
[313077563,1706724642302,-500.0,0.0002,2]
[313077565,1706724642311,-2777.5,0.0002,2]
[313077567,1706724642320,-2197.69,0.0002,2]
[313077569,1706724642329,-732.7,0.0002,2]
[313077570,1706724642338,-1166.69,0.0002,2]
[313077571,1706724642347,-500.0,0.0002,2]
[313077572,1706724642356,-500.0,0.00020273,2]
[313077573,1706724642364,-500.0,0.00020273,2]
[313077574,1706724642373,-532.99,0.00020273,2]
[313077575,1706724642382,-541.17,0.00020273,2]
[313077576,1706724642471,-915.39,0.00020273,2]
[313077577,1706724642480,-500.0,0.00020273,2]
[313077578,1706724642489,-372.95353061,0.00020273,2]
[313077579,1706724642498,-500.0,0.00020273,2]
[313077580,1706724642507,-500.0,0.00020273,2]
[313077581,1706724642515,-500.0,0.00020273,2]
[313077582,1706724642524,-500.0,0.00020273,2]
[313077583,1706724642533,-500.0,0.00020273,2]
[313077584,1706724642542,-500.0,0.00020273,2]
[313077585,1706724642551,-500.0,0.00020273,2]
[313077586,1706724642564,-500.0,0.00020273,2]
[313077587,1706724642573,-500.0,0.00020273,2]
[313077588,1706724642582,-296.71682223,0.00020273,2]
[313077589,1706724642590,-500.0,0.00020273,2]
[313077591,1706724642599,-1076.2,0.00020273,2]
[313077592,1706724642609,-1068.72,0.00020273,2]
[313077594,1706724642617,-1113.61,0.00020273,2]
[313077597,1706724642627,-909.23,0.00020273,2]
[313077599,1706724642638,-1835.52,0.00020273,2]
[313077601,1706724642648,-2491.9,0.00020273,2]
[313077603,1706724642657,-895.51,0.00020273,2]
[313077605,1706724642666,-500.0,0.00020273,2]
[313077607,1706724642676,-511.52,0.00020273,2]
[313077609,1706724642685,-1664.55,0.00020273,2]
[313077611,1706724642694,-258.58735297,0.00020273,2]
[313077613,1706724642703,-500.0,0.00020273,2]
[313077615,1706724642712,-867.31,0.00020273,2]
[313077616,1706724642722,-1644.26,0.00020273,2]
[313077619,1706724642732,-500.0,0.00020273,2]
[313077621,1706724642741,-603.06,0.00020273,2]
[313077624,1706724642751,-500.0,0.00020273,2]
[313077626,1706724642761,-500.0,0.00020273,2]
[313077627,1706724642770,-500.0,0.00020273,2]
[313077630,1706724642779,-1253.81,0.00020273,2]
[313077632,1706724642788,-500.0,0.00020273,2]
[313077634,1706724642797,-500.0,0.00020273,2]
[313077636,1706724642806,-3237.86,0.00020273,2]
[313077639,1706724642816,-500.0,0.00020273,2]
[313077642,1706724642824,-500.0,0.00020273,2]
[313077645,1706724642833,-1593.16,0.00020273,2]
[313077648,1706724642842,-862.47,0.00020273,2]
[313077650,1706724642851,-5897.29,0.00020273,2]
[313077652,1706724642861,-601.31,0.00020273,2]
[313077655,1706724642869,-6524.56,0.00020273,2]
[313077657,1706724642878,-662.81,0.00020273,2]
[313077659,1706724642888,-8750.27,0.00020273,2]
[313077661,1706724642897,-1012.19,0.00020273,2]
[313077663,1706724642906,-12456.94,0.00020273,2]
[313077665,1706724642915,-500.0,0.00020273,2]
[313077667,1706724642924,-500.0,0.00020273,2]
[313077669,1706724642934,-500.0,0.00020273,2]
[313077671,1706724642943,-569.2,0.00020273,2]
[313077673,1706724642952,-2044.9,0.00020273,2]
[313077675,1706724642960,-1069.24,0.00020273,2]
[313077677,1706724642969,-1339.73,0.00020273,2]
[313077679,1706724642979,-500.0,0.00020273,2]
[313077681,1706724642988,-2777.5,0.00020273,2]
[313077683,1706724642997,-2197.69,0.00020273,2]
[313077685,1706724643006,-732.7,0.00020273,2]
[313077687,1706724643015,-1166.69,0.00020273,2]
[313077689,1706724643024,-500.0,0.00020273,2]
[313077691,1706724643033,-251.1800213,0.00020274,2]
[313077693,1706724643042,-153.0,0.00020274,2]
[313077695,1706724643051,-153.0,0.00020274,2]
[313077697,1706724643060,-153.0000001,0.00020274,2]
[313077699,1706724643069,-153.142195,0.00020274,2]
[313077701,1706724643078,-153.0,0.00020274,2]
[313077703,1706724643088,-153.0,0.00020274,2]
[313077705,1706724643097,-153.0,0.00020274,2]
[313077707,1706724643106,-153.0,0.00020274,2]
[313077709,1706724643116,-153.0,0.00020274,2]
[313077711,1706724643125,-153.0,0.00020274,2]
[313077713,1706724643134,-153.0,0.00020274,2]
[313077715,1706724643144,-153.0,0.00020274,2]
[313077717,1706724643152,-153.0,0.00020274,2]
[313077719,1706724643162,-153.0,0.00020274,2]
[313077721,1706724643171,-153.0,0.00020274,2]
[313077723,1706724643180,-153.0,0.00020274,2]
[313077725,1706724643188,-153.0,0.00020274,2]
[313077727,1706724643197,-153.0,0.00020274,2]
[313077729,1706724643206,-153.0,0.00020274,2]
[313077731,1706724643218,-153.0,0.00020274,2]
[313077733,1706724643227,-398.0199253,0.00020274,2]
[313077735,1706724643236,-153.0,0.00020274,2]
[313077737,1706724643247,-153.0,0.00020274,2]
[313077739,1706724643256,-153.0,0.00020274,2]
[313077741,1706724643266,-199.6142226,0.00020274,2]
[313077743,1706724643275,-153.0,0.00020274,2]
[313077745,1706724643285,-153.0,0.00020274,2]
[313077747,1706724643295,-153.0,0.00020274,2]
[313077749,1706724643305,-153.0,0.00020274,2]
[313077751,1706724643315,-199.6142226,0.00020274,2]
[313077753,1706724643325,-199.6142226,0.00020274,2]
[313077755,1706724643333,-153.0,0.00020274,2]
[313077757,1706724643343,-153.0,0.00020274,2]
[313077759,1706724643352,-199.6142226,0.00020274,2]
[313077761,1706724643360,-153.0,0.00020274,2]
[313077763,1706724643369,-199.6142226,0.00020274,2]
[313077765,1706724643378,-237.4751378,0.00020274,2]
[313077767,1706724643386,-153.0,0.00020274,2]
[313077769,1706724643396,-399.0557995,0.00020274,2]
[313077771,1706724643404,-153.0,0.00020274,2]
[313077773,1706724643413,-153.0,0.00020274,2]
[313077775,1706724643423,-153.0,0.00020274,2]
[313077777,1706724643432,-158.346463,0.00020274,2]
[313077779,1706724643441,-199.6142226,0.00020274,2]
[313077781,1706724643450,-153.0,0.00020274,2]
[313077783,1706724643460,-153.0,0.00020274,2]
[313077785,1706724643469,-199.6142226,0.00020274,2]
[313077787,1706724643478,-153.0,0.00020274,2]
[313077789,1706724643487,-153.0,0.00020274,2]
[313077791,1706724643496,-153.0,0.00020274,2]
[313077792,1706724643505,-153.0,0.00020274,2]
[313077794,1706724643515,-199.6142226,0.00020274,2]
[313077796,1706724643525,-153.0,0.00020274,2]
[313077799,1706724643534,-153.0,0.00020274,2]
[313077800,1706724643543,-399.0557995,0.00020274,2]
[313077802,1706724643554,-153.0,0.00020274,2]
[313077804,1706724643567,-153.0,0.00020274,2]
[313077806,1706724643575,-153.0,0.00020274,2]
[313077808,1706724643584,-199.6142226,0.00020274,2]
[313077811,1706724643594,-153.0,0.00020274,2]
[313077812,1706724643603,-199.6142226,0.00020274,2]
[313077814,1706724643612,-153.0,0.00020274,2]
[313077816,1706724643622,-198.028817,0.00020274,2]
[313077818,1706724643631,-500.0,0.00020547,2]
[313077820,1706724643642,-500.0,0.00020547,2]
[313077822,1706724643651,-532.99,0.00020547,2]
[313077825,1706724643660,-541.17,0.00020547,2]
[313077826,1706724643670,-915.39,0.00020547,2]
[313077828,1706724643679,-500.0,0.00020547,2]
[313077830,1706724643689,-500.0,0.00020547,2]
[313077832,1706724643698,-500.0,0.00020547,2]
[313077834,1706724643706,-500.0,0.00020547,2]
[313077836,1706724643716,-539.61078944,0.00020547,2]
[313077838,1706724643726,-500.0,0.00020547,2]
[313077840,1706724643734,-1076.2,0.00020547,2]
[313077842,1706724643744,-1068.72,0.00020547,2]
[313077844,1706724643754,-1113.61,0.00020547,2]
[313077846,1706724643763,-909.23,0.00020547,2]
[313077848,1706724643772,-1835.52,0.00020547,2]
[313077850,1706724643781,-2491.9,0.00020547,2]
[313077852,1706724643791,-895.51,0.00020547,2]
[313077854,1706724643800,-500.0,0.00020547,2]
[313077856,1706724643809,-511.52,0.00020547,2]
[313077858,1706724643818,-1664.55,0.00020547,2]
[313077860,1706724643828,-500.0,0.00020547,2]
[313077862,1706724643837,-867.31,0.00020547,2]
[313077864,1706724643846,-1644.26,0.00020547,2]
[313077866,1706724643855,-500.0,0.00020547,2]
[313077868,1706724643864,-603.06,0.00020547,2]
[313077870,1706724643873,-500.0,0.00020547,2]
[313077872,1706724643882,-310.15523794,0.00020547,2]
[313077874,1706724643892,-500.0,0.00020547,2]
[313077876,1706724643902,-1253.81,0.00020547,2]
[313077878,1706724643911,-500.0,0.00020547,2]
[313077880,1706724643920,-500.0,0.00020547,2]
[313077882,1706724643929,-500.0,0.00020547,2]
[313077884,1706724643938,-1876.74283,0.00020547,2]
[313077886,1706724643947,-500.0,0.00020547,2]
[313077888,1706724643956,-1593.16,0.00020547,2]
[313077890,1706724643967,-1876.74283,0.00020547,2]
[313077892,1706724643976,-862.47,0.00020547,2]
[313077894,1706724643985,-5897.29,0.00020547,2]
[313077896,1706724643994,-601.31,0.00020547,2]
[313077898,1706724644003,-6524.56,0.00020547,2]
[313077900,1706724644012,-662.81,0.00020547,2]
[313077902,1706724644021,-8750.27,0.00020547,2]
[313077904,1706724644030,-1012.19,0.00020547,2]
[313077906,1706724644039,-12456.94,0.00020547,2]
[313077907,1706724644048,-3237.86,0.00020547,2]
[313077909,1706724644057,-500.0,0.00020547,2]
[313077911,1706724644066,-500.0,0.00020547,2]
[313077913,1706724644076,-500.0,0.00020547,2]
[313077915,1706724644085,-569.2,0.00020547,2]
[313077916,1706724644094,-2044.9,0.00020547,2]
[313077917,1706724644102,-1069.24,0.00020547,2]
[313077918,1706724644111,-1339.73,0.00020547,2]
[313077919,1706724644121,-500.0,0.00020547,2]
[313077921,1706724644130,-2777.5,0.00020547,2]
[313077922,1706724644139,-2197.69,0.00020547,2]
[313077924,1706724644148,-732.7,0.00020547,2]
[313077926,1706724644158,-1166.69,0.00020547,2]
[313077928,1706724644167,-500.0,0.00020547,2]
[313077930,1706724644176,-391.0,0.00020599,2]
[313077931,1706724644185,-500.0,0.00020821,2]
[313077933,1706724644194,-500.0,0.00020821,2]
[313077934,1706724644203,-532.99,0.00020821,2]
[313077936,1706724644212,-541.17,0.00020821,2]
[313077938,1706724644221,-915.39,0.00020821,2]
[313077939,1706724644230,-500.0,0.00020821,2]
[313077940,1706724644239,-500.0,0.00020821,2]
[313077941,1706724644248,-500.0,0.00020821,2]
[313077942,1706724644257,-500.0,0.00020821,2]
[313077943,1706724644266,-500.0,0.00020821,2]
[313077944,1706724644275,-1076.2,0.00020821,2]
[313077945,1706724644284,-1068.72,0.00020821,2]
[313077946,1706724644294,-1113.61,0.00020821,2]
[313077947,1706724644303,-909.23,0.00020821,2]
[313077948,1706724644313,-1835.52,0.00020821,2]
[313077949,1706724644321,-2491.9,0.00020821,2]
[313077950,1706724644331,-895.51,0.00020821,2]
[313077951,1706724644341,-500.0,0.00020821,2]
[313077952,1706724644352,-511.52,0.00020821,2]
[313077953,1706724644361,-1664.55,0.00020821,2]
[313077954,1706724644370,-347.53312367,0.00020821,2]
[313077955,1706724644379,-867.31,0.00020821,2]
[313077956,1706724644388,-1644.26,0.00020821,2]
[313077957,1706724644398,-500.0,0.00020821,2]
[313077958,1706724644407,-603.06,0.00020821,2]
[313077959,1706724644415,-1253.81,0.00020821,2]
[313077960,1706724644424,-500.0,0.00020821,2]
[313077961,1706724644433,-500.0,0.00020821,2]
[313077962,1706724644443,-500.0,0.00020821,2]
[313077963,1706724644452,-507.41983095,0.00020821,2]
[313077964,1706724644461,-1593.16,0.00020821,2]
[313077965,1706724644469,-862.47,0.00020821,2]
[313077966,1706724644478,-5897.29,0.00020821,2]
[313077967,1706724644487,-601.31,0.00020821,2]
[313077969,1706724644496,-6524.56,0.00020821,2]
[313077970,1706724644506,-662.81,0.00020821,2]
[313077971,1706724644515,-8750.27,0.00020821,2]
[313077972,1706724644524,-1012.19,0.00020821,2]
[313077973,1706724644533,-12456.94,0.00020821,2]
[313077975,1706724644615,-500.0,0.00020821,2]
[313077976,1706724644624,-500.0,0.00020821,2]
[313077978,1706724644634,-500.0,0.00020821,2]
[313077979,1706724644644,-569.2,0.00020821,2]
[313077981,1706724644654,-2044.9,0.00020821,2]
[313077982,1706724644663,-1069.24,0.00020821,2]
[313077984,1706724644671,-1339.73,0.00020821,2]
[313077986,1706724644680,-500.0,0.00020821,2]
[313077987,1706724644690,-2777.5,0.00020821,2]
[313077988,1706724644699,-2197.69,0.00020821,2]
[313077989,1706724644709,-732.7,0.00020821,2]
[313077990,1706724644718,-1166.69,0.00020821,2]
[313077991,1706724644728,-1000.0300009,0.00020992,2]
[313077992,1706724644738,-39137.9369644,0.00021042,2]
[313077993,1706724644748,-131.28452442,0.00021042,2]
[313077994,1706724644835,-640.30302664,0.00021042,2]
[313077995,1706724644914,-2425.77599105,0.00021042,2]
[313077996,1706724644923,-151.0,0.00021042,2]
[313077997,1706724644933,-151.0,0.00021042,2]
[313077998,1706724644942,-239.571655,0.00021042,2]
[313077999,1706724644951,-239.571655,0.00021042,2]
[313078000,1706724644961,-1876.74283,0.00021042,2]
[313078001,1706724644971,-1876.74283,0.00021042,2]
[313078002,1706724644981,-5000.0,0.00021053,2]
[313078003,1706724644991,-5000.0,0.00021053,2]
[313078004,1706724645000,-5000.0,0.00021053,2]
[313078005,1706724645009,-5000.0,0.00021053,2]
[313078006,1706724645018,-5000.0,0.00021053,2]
[313078007,1706724645029,-5000.0,0.00021053,2]
[313078008,1706724645037,-5000.0,0.00021053,2]
[313078009,1706724645046,-5000.0,0.00021053,2]
[313078010,1706724645055,-179.46079942,0.00021053,2]
[313078011,1706724645070,-2554.51574559,0.00021053,2]
[313078012,1706724645081,-2266.02345499,0.00021053,2]
[313078013,1706724645091,-50.65427819,0.00021053,2]
[313078014,1706724645102,-4949.34572181,0.00021053,2]
[313078015,1706724645111,-2504.82772827,0.00021053,2]
[313078084,1706724733361,-58812.31607647,0.00016,2]
[313078092,1706724809441,282.60239372,0.00016,20]
[313078098,1706724927122,391.0,0.00021293,7]
[313078100,1706725227277,391.0,0.00021272,7]
[313078120,1706725527347,391.0,0.00021257,7]
[313078121,1706725567600,2971.0052614,0.00015332,2]
[313078122,1706725594467,180.27136489,0.00015895,2]
[313078125,1706725700990,-155.17934871,0.00015964,2]
[313078126,1706725701026,-155.01550155,0.00015964,2]
[313078127,1706725701151,-16036.60209573,0.00015964,2]
[313078128,1706725712969,155.01550155,0.00014368,2]
[313078129,1706725730992,-19574.40046597,0.00015963,2]
[313078130,1706725736976,155.01550155,0.00014366,2]
[313078131,1706725750970,155.01550155,0.00014366,2]
[313078133,1706725768978,155.01550155,0.00014366,2]
[313078134,1706725774668,-13815.0,0.00015961,2]
[313078135,1706725789557,-15132.89010779,0.0001596,2]
[313078136,1706725789603,-53093.30747756,0.0001596,2]
[313078139,1706725820784,1228.66136751,0.00015335,2]
[313078140,1706725820813,10000.0,0.00015335,2]
[313078141,1706725820841,13500.58512809,0.00015335,2]
[313078143,1706725830146,391.0,0.00021241,7]
[313078190,1706725832449,-271.72552667,0.00015964,2]
[313078191,1706725832459,-6442.80173146,0.00015993,2]
[313078193,1706725832470,-32168.10332809,0.00015993,2]
[313078392,1706725838630,-45213.22913824,0.00015993,2]
[313078393,1706725838639,-20928.42010266,0.00015994,2]
[313078394,1706725838648,-6796.36771145,0.00015995,2]
[313078395,1706725838658,-273.02300698,0.00016561,2]
[313078396,1706725838667,-260.71148909,0.00016562,2]
[313078397,1706725838676,-155.01550155,0.00017258,3]
[313078399,1706725838686,-200.0,0.00017555,2]
[313078401,1706725838694,-1543.84635439,0.00018786,2]
[313078402,1706725838702,-13261.95075509,0.00019067,2]
[313078404,1706725838711,-5092.43181338,0.00019167,2]
[313078405,1706725838721,-1032.02745041,0.0001917,2]
[313078406,1706725838730,-2106.9014739,0.00019176,2]
[313078407,1706725838740,-500.0,0.00019178,2]
[313078408,1706725838749,-500.0,0.00019178,2]
[313078409,1706725838758,-241.17774505,0.00019178,2]
[313078410,1706725838767,-500.0,0.00019178,2]
[313078411,1706725838776,-1595.2,0.00019178,2]
[313078412,1706725838785,-500.0,0.00019178,2]
[313078413,1706725838794,-500.0,0.00019178,2]
[313078414,1706725838803,-500.0,0.00019178,2]
[313078415,1706725838813,-500.0,0.00019178,2]
[313078416,1706725838822,-909.23,0.00019178,2]
[313078417,1706725838831,-500.0,0.00019178,2]
[313078418,1706725838840,-500.0,0.00019178,2]
[313078419,1706725838848,-584.28,0.00019178,2]
[313078420,1706725838857,-500.0,0.00019178,2]
[313078421,1706725838866,-500.0,0.00019178,2]
[313078422,1706725838875,-500.0,0.00019178,2]
[313078423,1706725838884,-500.0,0.00019178,2]
[313078424,1706725838894,-500.0,0.00019178,2]
[313078425,1706725838905,-542.32133494,0.00019178,2]
[313078426,1706725838914,-662.81,0.00019178,2]
[313078427,1706725838923,-571.96371356,0.00019178,2]
[313078428,1706725838933,-2491.9,0.00019178,2]
[313078429,1706725838943,-500.0,0.00019178,2]
[313078430,1706725838952,-500.0,0.00019178,2]
[313078431,1706725838963,-500.0,0.00019178,2]
[313078432,1706725838973,-895.51,0.00019178,2]
[313078433,1706725838982,-500.0,0.00019178,2]
[313078434,1706725838991,-500.0,0.00019178,2]
[313078435,1706725839001,-500.0,0.00019178,2]
[313078436,1706725839010,-500.0,0.00019178,2]
[313078437,1706725839021,-1068.72,0.00019178,2]
[313078438,1706725839030,-511.52,0.00019178,2]